fUST/lending_fUST_20240105
["ID","MTS","AMOUNT","RATE_DAILY","PERIOD"]
[310281916,1704461439470,-500.0,0.00035499,4]
[310281918,1704461439479,-462.84408145,0.00035499,4]
[310281919,1704461439488,-500.0,0.00035499,4]
[310281921,1704461439497,-411.02067321,0.00035499,4]
[310281923,1704461439506,-160.80884562,0.00035499,7]
[310281925,1704461439518,-197.03505998,0.00035499,7]
[310281927,1704461439527,-174.6067176,0.00035499,7]
[310281929,1704461439543,-564.85462416,0.00035499,7]
[310281931,1704461439554,-500.0,0.00035499,7]
[310281933,1704461439565,-47006.99796797,0.000355,14]
[310281935,1704461439574,-155.42367453,0.00035604,4]
[310281937,1704461439584,-155.37218881,0.00035604,4]
[310281939,1704461439594,-19632.2086524,0.00035604,4]
[310281940,1704461439603,-483.75644311,0.00035604,2]
[310281941,1704461439612,-586.04748878,0.00035604,4]
[310281943,1704461439622,-178.24808117,0.00035604,4]
[310281944,1704461439631,-2027.03693589,0.00035604,4]
[310281945,1704461439640,-154.84515485,0.00035604,2]
[310281946,1704461439650,-293.96606539,0.00035604,4]
[310281947,1704461439659,-155.3151944,0.00035604,4]
[310281948,1704461439668,-154.84515485,0.00035604,4]
[310281949,1704461439678,-264.74772312,0.00035604,4]
[310281950,1704461439687,-4781.11668773,0.00035605,4]
[310281951,1704461439695,-4703.58483279,0.00035605,4]
[310281952,1704461439705,-199.11669018,0.00035616,3]
[310281953,1704461439714,-500.0,0.00035616,7]
[310281954,1704461439723,-500.0,0.00035616,7]
[310281955,1704461439733,-500.0,0.00035616,7]
[310281957,1704461439742,-500.0,0.00035616,7]
[310281959,1704461439751,-500.0,0.00035616,2]
[310281961,1704461439760,-500.0,0.00035616,7]
[310281963,1704461439769,-500.0,0.00035616,7]
[310281964,1704461439778,-500.0,0.00035616,7]
[310281966,1704461439790,-500.0,0.00035616,7]
[310281968,1704461439800,-171.13786446,0.00035616,7]
[310281969,1704461439809,-630.37,0.00035616,7]
[310281970,1704461439819,-500.0,0.00035616,7]
[310281972,1704461439828,-500.0,0.00035616,7]
[310281973,1704461439837,-500.0,0.00035616,7]
[310281975,1704461439846,-500.0,0.00035616,7]
[310281976,1704461439855,-500.0,0.00035616,7]
[310281977,1704461439865,-500.0,0.00035616,7]
[310281978,1704461439874,-513.52240526,0.00035616,14]
[310281979,1704461439883,-558.26,0.00035616,7]
[310281980,1704461439892,-500.0,0.00035616,7]
[310281981,1704461439902,-500.0,0.00035616,7]
[310281983,1704461439911,-500.0,0.00035616,7]
[310281985,1704461439921,-500.0,0.00035616,7]
[310281986,1704461439930,-500.0,0.00035616,7]
[310281988,1704461439940,-500.0,0.00035616,7]
[310281989,1704461439950,-500.0,0.00035616,7]
[310281991,1704461439960,-500.0,0.00035616,7]
[310281992,1704461439970,-500.0,0.00035616,7]
[310281993,1704461439979,-635.68,0.00035616,7]
[310281994,1704461439989,-500.0,0.00035616,7]
[310281995,1704461439999,-333.84944928,0.00035616,7]
[310281996,1704461440010,-500.0,0.00035616,7]
[310281997,1704461440021,-730.2,0.00035616,7]
[310281998,1704461440035,-500.0,0.00035616,7]
[310281999,1704461440045,-500.0,0.00035616,7]
[310282000,1704461440055,-500.0,0.00035616,7]
[310282001,1704461440065,-500.0,0.00035616,7]
[310282002,1704461440075,-500.0,0.00035616,7]
[310282003,1704461440084,-500.0,0.00035616,7]
[310282004,1704461440093,-540.12,0.00035616,7]
[310282005,1704461440103,-500.0,0.00035616,7]
[310282006,1704461440112,-500.0,0.00035616,7]
[310282007,1704461440121,-500.0,0.00035616,7]
[310282008,1704461440132,-1804.22,0.00035616,7]
[310282009,1704461440142,-3024.24,0.00035616,7]
[310282010,1704461440151,-919.35,0.00035616,7]
[310282011,1704461440161,-500.0,0.00035616,7]
[310282012,1704461440170,-1257.65,0.00035616,7]
[310282013,1704461440180,-500.0,0.00035616,7]
[310282014,1704461440189,-500.0,0.00035616,7]
[310282015,1704461440199,-500.0,0.00035616,7]
[310282016,1704461440209,-993.25,0.00035616,7]
[310282017,1704461440218,-500.0,0.00035616,7]
[310282018,1704461440228,-3518.14,0.00035616,7]
[310282019,1704461440239,-1258.03,0.00035616,7]
[310282020,1704461440249,-703.55,0.00035616,7]
[310282021,1704461440260,-500.0,0.00035616,7]
[310282022,1704461440270,-37562.34,0.00035616,3]
[310282023,1704461440286,-7201.52,0.00035616,7]
[310282024,1704461440297,-1449.62,0.00035616,7]
[310282025,1704461440307,-500.0,0.00035616,7]
[310282026,1704461440319,-500.0,0.00035616,7]
[310282027,1704461440331,-500.0,0.00035616,7]
[310282028,1704461440342,-500.0,0.00035616,7]
[310282029,1704461440353,-500.0,0.00035616,7]
[310282030,1704461440364,-1205.47,0.00035616,7]
[310282031,1704461440375,-5156.47,0.00035616,7]
[310282032,1704461440385,-500.0,0.00035616,7]
[310282033,1704461440395,-500.0,0.00035616,7]
[310282034,1704461440406,-500.0,0.00035616,7]
[310282035,1704461440417,-500.0,0.00035616,7]
[310282036,1704461440427,-622.71,0.00035616,7]
[310282037,1704461440437,-594.91872802,0.00035616,7]
[310282038,1704461440448,-500.0,0.00035616,7]
[310282039,1704461440458,-533.48335192,0.00035616,7]
[310282040,1704461440468,-509.45,0.00035616,7]
[310282041,1704461440478,-500.0,0.00035616,7]
[310282042,1704461440488,-628.03,0.00035616,7]
[310282043,1704461440498,-181.87854,0.00035616,120]
[310282044,1704461440508,-1614.823776,0.00035798,2]
[310282045,1704461440519,-12206.9372436,0.000358,5]
[310282046,1704461440529,-243.90917476,0.00035889,7]
[310282047,1704461440550,-198.36174919,0.00035889,7]
[310282048,1704461440560,-234.20030341,0.00035889,7]
[310282049,1704461440569,-500.0,0.00035889,7]
[310282050,1704461440580,-558.26550491,0.00035889,7]
[310282051,1704461440589,-500.0,0.0003589,7]
[310282052,1704461440599,-500.0,0.0003589,7]
[310282053,1704461440608,-500.0,0.0003589,7]
[310282054,1704461440617,-303.33944967,0.0003589,2]
[310282055,1704461440627,-500.0,0.0003589,7]
[310282056,1704461440636,-500.0,0.0003589,7]
[310282057,1704461440646,-500.0,0.0003589,7]
[310282058,1704461440656,-500.0,0.0003589,7]
[310282059,1704461440666,-630.37,0.0003589,7]
[310282060,1704461440675,-322.38104457,0.0003589,7]
[310282061,1704461440684,-500.0,0.0003589,7]
[310282062,1704461440693,-500.0,0.0003589,7]
[310282063,1704461440703,-500.0,0.0003589,7]
[310282064,1704461440712,-500.0,0.0003589,7]
[310282065,1704461440722,-500.0,0.0003589,7]
[310282066,1704461440731,-558.26,0.0003589,7]
[310282067,1704461440740,-500.0,0.0003589,7]
[310282068,1704461440749,-500.0,0.0003589,7]
[310282070,1704461440758,-500.0,0.0003589,7]
[310282072,1704461440767,-500.0,0.0003589,7]
[310282073,1704461440777,-500.0,0.0003589,7]
[310282074,1704461440789,-500.0,0.0003589,7]
[310282075,1704461440799,-500.0,0.0003589,7]
[310282076,1704461440809,-635.68,0.0003589,7]
[310282077,1704461440818,-500.0,0.0003589,7]
[310282080,1704461440828,-500.0,0.0003589,7]
[310282081,1704461440838,-730.2,0.0003589,7]
[310282082,1704461440847,-500.0,0.0003589,7]
[310282083,1704461440856,-500.0,0.0003589,7]
[310282084,1704461440866,-500.0,0.0003589,7]
[310282085,1704461440876,-500.0,0.0003589,7]
[310282086,1704461440885,-399.62154004,0.0003589,7]
[310282087,1704461440895,-540.12,0.0003589,7]
[310282088,1704461440903,-500.0,0.0003589,7]
[310282089,1704461440912,-455.16082461,0.0003589,7]
[310282090,1704461440921,-500.0,0.0003589,7]
[310282091,1704461440930,-1804.22,0.0003589,7]
[310282093,1704461440939,-3024.24,0.0003589,7]
[310282095,1704461440948,-919.35,0.0003589,7]
[310282097,1704461440958,-500.0,0.0003589,7]
[310282098,1704461440967,-1257.65,0.0003589,7]
[310282100,1704461440977,-500.0,0.0003589,7]
[310282101,1704461440988,-500.0,0.0003589,7]
[310282102,1704461440998,-500.0,0.0003589,7]
[310282104,1704461441007,-993.25,0.0003589,7]
[310282106,1704461441099,-500.0,0.0003589,7]
[310282107,1704461441123,-3518.14,0.0003589,7]
[310282108,1704461441134,-1258.03,0.0003589,7]
[310282109,1704461441143,-703.55,0.0003589,7]
[310282110,1704461441153,-500.0,0.0003589,7]
[310282111,1704461441162,-37562.34,0.0003589,3]
[310282112,1704461441171,-7201.52,0.0003589,7]
[310282113,1704461441180,-1449.62,0.0003589,7]
[310282114,1704461441189,-500.0,0.0003589,7]
[310282115,1704461441199,-500.0,0.0003589,7]
[310282116,1704461441208,-500.0,0.0003589,7]
[310282117,1704461441217,-224.09206611,0.0003589,7]
[310282118,1704461441227,-1205.47,0.0003589,7]
[310282119,1704461441236,-5156.47,0.0003589,7]
[310282120,1704461441245,-500.0,0.0003589,7]
[310282121,1704461441254,-500.0,0.0003589,7]
[310282122,1704461441263,-500.0,0.0003589,7]
[310282123,1704461441272,-500.0,0.0003589,7]
[310282124,1704461441282,-622.71,0.0003589,7]
[310282125,1704461441294,-500.0,0.0003589,7]
[310282126,1704461441303,-509.45,0.0003589,7]
[310282127,1704461441312,-628.03,0.0003589,7]
[310282128,1704461441322,-150.78889555,0.00035895,2]
[310282129,1704461441332,-154.78330338,0.000359,4]
[310282130,1704461441341,-409.8962,0.00036,30]
[310282131,1704461441350,-469.08343033,0.00036064,2]
[310282132,1704461441359,-170.19673371,0.00036098,2]
[310282133,1704461441369,-13159.65974553,0.00036098,2]
[310282134,1704461441378,-3289.91493638,0.00036098,2]
[310282135,1704461441387,-717.21348304,0.00036098,2]
[310282136,1704461441397,-500.0,0.00036164,7]
[310282137,1704461441406,-500.0,0.00036164,7]
[310282138,1704461441416,-500.0,0.00036164,7]
[310282139,1704461441425,-500.0,0.00036164,7]
[310282140,1704461441435,-500.0,0.00036164,7]
[310282141,1704461441444,-500.0,0.00036164,7]
[310282142,1704461441453,-500.0,0.00036164,7]
[310282143,1704461441462,-630.37,0.00036164,7]
[310282144,1704461441477,-537.72586878,0.00036164,7]
[310282145,1704461441486,-500.0,0.00036164,7]
[310282146,1704461441496,-500.0,0.00036164,7]
[310282147,1704461441505,-500.0,0.00036164,7]
[310282148,1704461441515,-500.0,0.00036164,7]
[310282149,1704461441524,-558.26,0.00036164,7]
[310282150,1704461441539,-500.0,0.00036164,7]
[310282151,1704461441549,-500.0,0.00036164,7]
[310282152,1704461441559,-500.0,0.00036164,7]
[310282153,1704461441568,-500.0,0.00036164,7]
[310282154,1704461441580,-500.0,0.00036164,7]
[310282155,1704461441590,-500.0,0.00036164,7]
[310282156,1704461441599,-500.0,0.00036164,7]
[310282157,1704461441610,-635.68,0.00036164,7]
[310282158,1704461441619,-500.0,0.00036164,7]
[310282159,1704461441631,-500.0,0.00036164,7]
[310282160,1704461441641,-730.2,0.00036164,7]
[310282161,1704461441650,-500.0,0.00036164,7]
[310282162,1704461441659,-500.0,0.00036164,7]
[310282163,1704461441669,-500.0,0.00036164,7]
[310282164,1704461441679,-500.0,0.00036164,7]
[310282165,1704461441688,-540.12,0.00036164,7]
[310282166,1704461441698,-500.0,0.00036164,7]
[310282167,1704461441707,-500.0,0.00036164,7]
[310282169,1704461441717,-1804.22,0.00036164,7]
[310282171,1704461441727,-3024.24,0.00036164,7]
[310282173,1704461441736,-919.35,0.00036164,7]
[310282175,1704461441746,-500.0,0.00036164,7]
[310282177,1704461441755,-1257.65,0.00036164,7]
[310282179,1704461441765,-500.0,0.00036164,7]
[310282181,1704461441775,-500.0,0.00036164,7]
[310282183,1704461441789,-500.0,0.00036164,7]
[310282185,1704461441798,-993.25,0.00036164,7]
[310282187,1704461441808,-500.0,0.00036164,7]
[310282189,1704461441818,-3518.14,0.00036164,7]
[310282191,1704461441828,-1258.03,0.00036164,7]
[310282193,1704461441838,-703.55,0.00036164,7]
[310282195,1704461441848,-500.0,0.00036164,7]
[310282197,1704461441857,-37562.34,0.00036164,3]
[310282199,1704461441868,-7201.52,0.00036164,7]
[310282201,1704461441878,-1449.62,0.00036164,7]
[310282203,1704461441888,-500.0,0.00036164,7]
[310282205,1704461441897,-500.0,0.00036164,7]
[310282207,1704461441907,-500.0,0.00036164,7]
[310282209,1704461441916,-1205.47,0.00036164,7]
[310282211,1704461441926,-5156.47,0.00036164,7]
[310282212,1704461441938,-500.0,0.00036164,7]
[310282214,1704461441947,-500.0,0.00036164,7]
[310282216,1704461441958,-622.71,0.00036164,7]
[310282218,1704461441967,-509.45,0.00036164,7]
[310282220,1704461441977,-628.03,0.00036164,7]
[310282222,1704461441988,-5941.78917377,0.00036226,4]
[310282224,1704461441998,-374.66542456,0.00036235,4]
[310282226,1704461442008,-275.29269215,0.00036235,4]
[310282228,1704461442018,-243.43593693,0.00036235,4]
[310282230,1704461442028,-3732.74533379,0.00036235,4]
[310282232,1704461442045,-494.21254538,0.00036235,2]
[310282234,1704461442054,-1631.11386911,0.00036236,4]
[310282236,1704461442064,-847.44521896,0.00036237,4]
[310282238,1704461442074,-500.0,0.00036438,7]
[310282240,1704461442083,-500.0,0.00036438,7]
[310282242,1704461442093,-500.0,0.00036438,7]
[310282244,1704461442103,-500.0,0.00036438,7]
[310282246,1704461442113,-500.0,0.00036438,7]
[310282248,1704461442123,-500.0,0.00036438,7]
[310282250,1704461442133,-630.37,0.00036438,7]
[310282252,1704461442143,-500.0,0.00036438,7]
[310282254,1704461442153,-500.0,0.00036438,7]
[310282256,1704461442162,-558.26,0.00036438,7]
[310282258,1704461442171,-500.0,0.00036438,7]
[310282259,1704461442182,-500.0,0.00036438,7]
[310282261,1704461442192,-500.0,0.00036438,7]
[310282263,1704461442203,-500.0,0.00036438,7]
[310282265,1704461442213,-500.0,0.00036438,7]
[310282267,1704461442224,-500.0,0.00036438,7]
[310282269,1704461442233,-635.68,0.00036438,7]
[310282271,1704461442245,-500.0,0.00036438,7]
[310282272,1704461442255,-500.0,0.00036438,7]
[310282274,1704461442265,-730.2,0.00036438,7]
[310282276,1704461442276,-500.0,0.00036438,7]
[310282278,1704461442290,-500.0,0.00036438,7]
[310282279,1704461442300,-500.0,0.00036438,7]
[310282281,1704461442311,-500.0,0.00036438,7]
[310282283,1704461442321,-540.12,0.00036438,7]
[310282285,1704461442332,-500.0,0.00036438,7]
[310282287,1704461442342,-500.0,0.00036438,7]
[310282289,1704461442353,-1804.22,0.00036438,7]
[310282291,1704461442363,-3024.24,0.00036438,7]
[310282293,1704461442373,-919.35,0.00036438,7]
[310282295,1704461442383,-500.0,0.00036438,7]
[310282296,1704461442393,-1257.65,0.00036438,7]
[310282298,1704461442403,-500.0,0.00036438,7]
[310282300,1704461442413,-500.0,0.00036438,7]
[310282302,1704461442423,-993.25,0.00036438,7]
[310282304,1704461442433,-500.0,0.00036438,7]
[310282306,1704461442443,-3518.14,0.00036438,7]
[310282307,1704461442453,-1258.03,0.00036438,7]
[310282309,1704461442463,-703.55,0.00036438,7]
[310282311,1704461442474,-500.0,0.00036438,7]
[310282313,1704461442484,-37562.34,0.00036438,3]
[310282315,1704461442494,-7201.52,0.00036438,7]
[310282317,1704461442504,-1449.62,0.00036438,7]
[310282318,1704461442515,-500.0,0.00036438,7]
[310282319,1704461442525,-500.0,0.00036438,7]
[310282320,1704461442537,-500.0,0.00036438,7]
[310282322,1704461442548,-1205.47,0.00036438,7]
[310282324,1704461442558,-5156.47,0.00036438,7]
[310282326,1704461442568,-500.0,0.00036438,7]
[310282327,1704461442578,-500.0,0.00036438,7]
[310282329,1704461442589,-622.71,0.00036438,7]
[310282331,1704461442598,-509.45,0.00036438,7]
[310282333,1704461442607,-628.03,0.00036438,7]
[310282335,1704461442616,-500.0,0.00036712,7]
[310282336,1704461442626,-500.0,0.00036712,7]
[310282337,1704461442637,-500.0,0.00036712,7]
[310282338,1704461442647,-500.0,0.00036712,7]
[310282340,1704461442657,-500.0,0.00036712,7]
[310282342,1704461442666,-500.0,0.00036712,7]
[310282344,1704461442677,-630.37,0.00036712,7]
[310282346,1704461442686,-588.66992823,0.00036712,7]
[310282347,1704461442697,-500.0,0.00036712,7]
[310282348,1704461442707,-558.26,0.00036712,7]
[310282350,1704461442718,-500.0,0.00036712,7]
[310282352,1704461442727,-500.0,0.00036712,7]
[310282353,1704461442737,-500.0,0.00036712,7]
[310282355,1704461442747,-500.0,0.00036712,7]
[310282357,1704461442759,-500.0,0.00036712,7]
[310282359,1704461442769,-500.0,0.00036712,7]
[310282361,1704461442779,-635.68,0.00036712,7]
[310282363,1704461442800,-500.0,0.00036712,7]
[310282365,1704461442811,-500.0,0.00036712,7]
[310282367,1704461442822,-730.2,0.00036712,7]
[310282369,1704461442833,-500.0,0.00036712,7]
[310282370,1704461442843,-206.3840092,0.00036712,7]
[310282372,1704461442853,-500.0,0.00036712,7]
[310282374,1704461442863,-500.0,0.00036712,7]
[310282376,1704461442873,-540.12,0.00036712,7]
[310282378,1704461442883,-500.0,0.00036712,7]
[310282379,1704461442894,-500.0,0.00036712,7]
[310282380,1704461442905,-1804.22,0.00036712,7]
[310282381,1704461442915,-3024.24,0.00036712,7]
[310282382,1704461442925,-919.35,0.00036712,7]
[310282383,1704461442935,-500.0,0.00036712,7]
[310282384,1704461442945,-1257.65,0.00036712,7]
[310282385,1704461442956,-500.0,0.00036712,7]
[310282386,1704461442966,-500.0,0.00036712,7]
[310282387,1704461442977,-993.25,0.00036712,7]
[310282388,1704461442988,-500.0,0.00036712,7]
[310282389,1704461442998,-3518.14,0.00036712,7]
[310282390,1704461443008,-1258.03,0.00036712,7]
[310282391,1704461443018,-703.55,0.00036712,7]
[310282392,1704461443028,-500.0,0.00036712,7]
[310282393,1704461443043,-22985.23018134,0.00036712,3]
[310282394,1704461443060,-1276.87891946,0.00036712,3]
[310282395,1704461443073,-13300.2308992,0.00036712,3]
[310282396,1704461443085,-7201.52,0.00036712,7]
[310282397,1704461443094,-1449.62,0.00036712,7]
[310282398,1704461443104,-500.0,0.00036712,7]
[310282399,1704461443113,-500.0,0.00036712,7]
[310282400,1704461443123,-500.0,0.00036712,7]
[310282401,1704461443132,-1205.47,0.00036712,7]
[310282402,1704461443141,-1725.33926956,0.00036712,7]
[310282404,1704461443157,-3431.13073044,0.00036712,7]
[310282406,1704461443167,-500.0,0.00036712,7]
[310282408,1704461443176,-500.0,0.00036712,7]
[310282410,1704461443185,-507.90348336,0.00036712,7]
[310282648,1704461446727,-153.0,0.00033,2]
[310282650,1704461446738,-500.0,0.00035616,7]
[310282651,1704461446747,-500.0,0.0003589,7]
[310282653,1704461446756,-114.80651664,0.00036712,7]
[310282654,1704461446765,-509.45,0.00036712,7]
[310282655,1704461446775,-628.03,0.00036712,7]
[310282656,1704461446788,-31332.12,0.00036976,3]
[310282657,1704461446797,-500.0,0.00036986,7]
[310282659,1704461446807,-500.0,0.00036986,7]
[310282661,1704461446819,-369.34935767,0.00036986,7]
[310282663,1704461446829,-500.0,0.00036986,7]
[310282665,1704461446839,-500.0,0.00036986,7]
[310282666,1704461446849,-500.0,0.00036986,7]
[310282667,1704461446859,-630.37,0.00036986,7]
[310282668,1704461446869,-500.0,0.00036986,7]
[310282670,1704461446879,-558.26,0.00036986,7]
[310282672,1704461446888,-500.0,0.00036986,7]
[310282674,1704461446897,-500.0,0.00036986,7]
[310282676,1704461446907,-500.0,0.00036986,7]
[310282678,1704461446917,-500.0,0.00036986,7]
[310282680,1704461446926,-500.0,0.00036986,7]
[310282682,1704461446936,-500.0,0.00036986,7]
[310282684,1704461446946,-635.68,0.00036986,7]
[310282686,1704461446955,-500.0,0.00036986,7]
[310282688,1704461446965,-500.0,0.00036986,7]
[310282690,1704461446975,-730.2,0.00036986,7]
[310282692,1704461446985,-500.0,0.00036986,7]
[310282693,1704461446994,-500.0,0.00036986,7]
[310282694,1704461447004,-500.0,0.00036986,7]
[310282696,1704461447014,-500.0,0.00036986,7]
[310282698,1704461447024,-500.0,0.00036986,7]
[310282700,1704461447040,-1804.22,0.00036986,7]
[310282702,1704461447054,-3024.24,0.00036986,7]
[310282705,1704461447064,-919.35,0.00036986,7]
[310282707,1704461447076,-500.0,0.00036986,7]
[310282709,1704461447086,-1257.65,0.00036986,7]
[310282711,1704461447096,-500.0,0.00036986,7]
[310282713,1704461447110,-500.0,0.00036986,7]
[310282714,1704461447120,-993.25,0.00036986,7]
[310282716,1704461447130,-500.0,0.00036986,7]
[310282719,1704461447142,-3518.14,0.00036986,7]
[310282721,1704461447152,-1258.03,0.00036986,7]
[310282723,1704461447162,-703.55,0.00036986,7]
[310282724,1704461447172,-500.0,0.00036986,7]
[310282725,1704461447182,-37562.34,0.00036986,3]
[310282726,1704461447192,-7201.52,0.00036986,7]
[310282727,1704461447201,-1449.62,0.00036986,7]
[310282728,1704461447211,-500.0,0.00036986,7]
[310282729,1704461447221,-500.0,0.00036986,7]
[310282730,1704461447230,-500.0,0.00036986,7]
[310282731,1704461447240,-1205.47,0.00036986,7]
[310282732,1704461447250,-5156.47,0.00036986,7]
[310282733,1704461447259,-500.0,0.00036986,7]
[310282734,1704461447268,-500.0,0.00036986,7]
[310282735,1704461447277,-622.71,0.00036986,7]
[310282736,1704461447422,-509.45,0.00036986,7]
[310282737,1704461447433,-628.03,0.00036986,7]
[310282738,1704461447442,-464.66,0.00037,2]
[310282739,1704461447452,-848.89,0.00037,2]
[310282740,1704461447461,-4209.5776207,0.00037,7]
[310282741,1704461447470,-1614.823776,0.00037075,2]
[310282742,1704461447480,-500.0,0.0003726,7]
[310282743,1704461447489,-500.0,0.0003726,7]
[310282744,1704461447498,-153.44674562,0.0003726,7]
[310282745,1704461447507,-500.0,0.0003726,7]
[310282746,1704461447517,-500.0,0.0003726,7]
[310282747,1704461447527,-630.37,0.0003726,7]
[310282748,1704461447540,-500.0,0.0003726,7]
[310282749,1704461447555,-558.26,0.0003726,7]
[310282750,1704461447565,-500.0,0.0003726,7]
[310282751,1704461447574,-500.0,0.0003726,7]
[310282752,1704461447583,-500.0,0.0003726,7]
[310282753,1704461447594,-500.0,0.0003726,7]
[310282754,1704461447603,-500.0,0.0003726,7]
[310282755,1704461447612,-500.0,0.0003726,7]
[310282756,1704461447621,-635.68,0.0003726,7]
[310282757,1704461447631,-500.0,0.0003726,7]
[310282758,1704461447641,-562.89665243,0.0003726,7]
[310282759,1704461447651,-730.2,0.0003726,7]
[310282760,1704461447660,-500.0,0.0003726,7]
[310282761,1704461447670,-500.0,0.0003726,7]
[310282762,1704461447680,-366.62415653,0.0003726,7]
[310282763,1704461447689,-500.0,0.0003726,7]
[310282764,1704461447699,-500.0,0.0003726,7]
[310282765,1704461447708,-1804.22,0.0003726,7]
[310282766,1704461447718,-3024.24,0.0003726,7]
[310282768,1704461447727,-919.35,0.0003726,7]
[310282770,1704461447736,-389.89239221,0.0003726,7]
[310282771,1704461447745,-1257.65,0.0003726,7]
[310282773,1704461447755,-500.0,0.0003726,7]
[310282775,1704461447764,-500.0,0.0003726,7]
[310282777,1704461447774,-993.25,0.0003726,7]
[310282779,1704461447783,-500.0,0.0003726,7]
[310282781,1704461447796,-3518.14,0.0003726,7]
[310282783,1704461447805,-1258.03,0.0003726,7]
[310282784,1704461447815,-703.55,0.0003726,7]
[310282785,1704461447825,-500.0,0.0003726,7]
[310282786,1704461447834,-37562.34,0.0003726,3]
[310282787,1704461447843,-7201.52,0.0003726,7]
[310282788,1704461447853,-1449.62,0.0003726,7]
[310282789,1704461447863,-500.0,0.0003726,7]
[310282790,1704461447874,-500.0,0.0003726,7]
[310282791,1704461447883,-500.0,0.0003726,7]
[310282792,1704461447893,-1205.47,0.0003726,7]
[310282794,1704461447903,-5156.47,0.0003726,7]
[310282796,1704461447912,-500.0,0.0003726,7]
[310282797,1704461447922,-500.0,0.0003726,7]
[310282798,1704461447932,-622.71,0.0003726,7]
[310282799,1704461447942,-509.45,0.0003726,7]
[310282800,1704461447952,-628.03,0.0003726,7]
[310282801,1704461447962,-500.0,0.00037534,7]
[310282802,1704461447973,-500.0,0.00037534,7]
[310282803,1704461447983,-500.0,0.00037534,7]
[310282804,1704461447993,-500.0,0.00037534,7]
[310282805,1704461448003,-630.37,0.00037534,7]
[310282806,1704461448012,-500.0,0.00037534,7]
[310282807,1704461448022,-558.26,0.00037534,7]
[310282808,1704461448032,-500.0,0.00037534,7]
[310282809,1704461448047,-500.0,0.00037534,7]
[310282810,1704461448057,-500.0,0.00037534,7]
[310282811,1704461448066,-500.0,0.00037534,7]
[310282813,1704461448075,-500.0,0.00037534,7]
[310282815,1704461448085,-500.0,0.00037534,7]
[310282817,1704461448094,-635.68,0.00037534,7]
[310282819,1704461448103,-290.34078663,0.00037534,7]
[310282821,1704461448113,-730.2,0.00037534,7]
[310282822,1704461448123,-500.0,0.00037534,7]
[310282824,1704461448132,-500.0,0.00037534,7]
[310282827,1704461448142,-500.0,0.00037534,7]
[310282828,1704461448151,-500.0,0.00037534,7]
[310282830,1704461448160,-1804.22,0.00037534,7]
[310282832,1704461448170,-3024.24,0.00037534,7]
[310282834,1704461448179,-919.35,0.00037534,7]
[310282836,1704461448188,-1257.65,0.00037534,7]
[310282838,1704461448197,-500.0,0.00037534,7]
[310282840,1704461448207,-500.0,0.00037534,7]
[310282843,1704461448216,-993.25,0.00037534,7]
[310282845,1704461448226,-486.8104117,0.00037534,7]
[310282847,1704461448235,-3518.14,0.00037534,7]
[310282848,1704461448245,-1258.03,0.00037534,7]